bitfinex-derivatives/quotes_BNBF0:USTF0_20250130
["timestamp","ask_amount","ask_price","bid_price","bid_amount"]
[1738275617783,0.27082871,678.93,678.19,0.80419108]
[1738275617982,0.27082871,678.93,678.2,0.80419108]
[1738275618184,0.27082871,678.93,678.21,0.80419108]
[1738275618387,1.37571995,678.93,678.22,0.80419108]
[1738275618686,0.27082871,678.92,678.23,0.80419108]
[1738275618883,0.27082871,678.92,678.24,0.80419108]
[1738275619079,0.27082871,678.92,678.25,0.80419108]
[1738275619284,0.27082871,678.92,678.26,0.80419108]
[1738275619585,0.27082871,678.92,678.27,0.80376687]
[1738275619786,0.27082871,678.92,678.28,0.80376687]
[1738275619986,0.27082871,678.92,678.29,0.80376687]
[1738275620285,0.27082871,678.92,678.3,0.80376687]
[1738275620487,0.27082871,678.92,678.31,0.80376687]
[1738275620687,1.10489124,678.93,678.32,0.80376687]
[1738275620884,0.27083255,678.92,678.33,0.80370453]
[1738275621085,0.27083255,678.92,678.05,1.174]
[1738275621280,1.10489124,678.93,678.06,0.80369375]
[1738275621487,1.10489124,678.93,678.07,0.80369375]
[1738275621686,1.10489124,678.93,678.08,0.80369375]
[1738275621884,1.10489124,678.93,678.09,0.80369375]
[1738275622081,1.10489124,678.93,678.1,0.80369375]
[1738275622279,0.5413922,685.01,678.07,1.53848421]
[1738275622280,1.10489124,678.78,678.11,0.80369375]
[1738275622483,1.10489124,678.78,678.12,0.80369375]
[1738275622786,1.10489124,678.78,678.13,0.80369375]
[1738275622988,1.10489124,678.78,678.14,0.80369375]
[1738275623181,1.10489124,678.78,678.07,1.53848421]
[1738275623182,1.10489124,678.78,678.15,0.80369375]
[1738275623384,1.10489124,678.78,678.16,0.80369375]
[1738275623689,1.10489124,678.78,678.17,0.80369375]
[1738275623986,1.10489124,678.78,678.18,0.80369375]
[1738275624189,1.10489124,678.78,678.19,0.80369375]
[1738275624385,1.10489124,678.78,678.2,0.80369375]
[1738275624585,1.10489124,678.78,678.21,0.80369375]
[1738275624782,1.10489124,678.78,678.22,0.80369375]
[1738275624983,1.10489124,678.78,678.23,0.80369375]
[1738275625286,1.10489124,678.78,678.24,0.80369375]
[1738275625486,1.10489124,678.78,678.25,0.80369375]
[1738275625691,1.10489124,678.92,678.26,0.80369375]
[1738275625986,1.10489124,678.92,678.27,0.80369375]
[1738275626183,1.10489124,678.92,678.28,0.80369375]
[1738275626488,1.10489124,678.92,678.29,0.80369375]
[1738275626688,1.10489124,678.92,678.3,0.80369375]
[1738275626888,1.10489124,678.92,678.31,0.80369375]
[1738275627084,1.10489124,678.92,678.32,0.80369375]
[1738275627293,1.10489124,678.92,678.33,0.80369375]
[1738275627494,1.10489124,678.92,678.34,0.80338752]
[1738275627788,1.10489124,678.92,678.35,0.80338752]
[1738275627988,1.10489124,678.92,678.36,0.80338752]
[1738275628188,1.10489124,678.92,678.37,0.80338752]
[1738275628390,1.10489124,678.92,678.38,0.80338752]
[1738275628590,1.10489124,678.92,678.39,0.80338752]
[1738275628890,1.10489124,678.92,678.4,0.80338752]
[1738275629093,1.10489124,678.93,678.41,0.80338752]
[1738275629290,1.10489124,678.93,678.42,0.80338752]
[1738275629592,1.10489124,678.93,678.16,1.02]
[1738275629791,1.10489124,678.93,678.17,0.80334039]
[1738275630091,1.10489124,678.93,678.16,1.02]
[1738275630092,1.10489124,678.93,678.18,0.80334039]
[1738275630291,1.10489124,678.93,678.19,0.80334039]
[1738275630491,1.10489124,678.93,678.2,0.80334039]
[1738275630694,1.10489124,678.93,678.21,0.80334039]
[1738275630895,1.10489124,678.93,678.22,0.80334039]
[1738275631096,1.10489124,678.93,678.23,0.80334039]
[1738275631295,0.27083094,678.92,678.24,0.80334039]
[1738275631490,0.27083094,678.92,678.25,0.80334039]
[1738275631694,0.27083094,678.92,678.26,0.80334039]
[1738275631894,0.27083094,678.92,678.27,0.80330489]
[1738275632093,0.27083094,678.92,678.16,1.02]
[1738275632094,0.27083094,678.92,678.28,0.80330489]
[1738275632297,1.10489124,678.91,678.29,0.80330489]
[1738275632596,0.27083094,678.9,678.3,0.80330489]
[1738275632796,0.27083094,678.9,678.31,0.80330489]
[1738275632990,0.27083094,678.9,678.32,0.80330489]
[1738275633194,0.27083094,678.9,678.33,0.80330489]
[1738275633391,0.27083094,678.9,678.34,0.80330489]
[1738275633595,0.27083094,678.9,678.35,0.80330489]
[1738275633791,0.27083094,678.9,678.36,0.80330489]
[1738275633990,0.27083094,678.9,678.37,0.80330489]
[1738275634192,0.27083094,678.9,678.38,0.80330489]
[1738275634393,0.27083094,678.9,678.39,0.80330489]
[1738275634690,0.27083094,678.9,678.4,0.80330489]
[1738275634895,0.27083094,678.9,678.41,0.80330489]
[1738275635097,0.27083094,678.9,678.16,1.02]
[1738275635098,1.10489124,678.78,678.42,0.80330489]
[1738275635396,1.10489124,678.78,678.43,0.80330489]
[1738275635595,1.10489124,678.78,678.44,0.80330489]
[1738275635789,1.10489124,678.78,678.45,0.80330489]
[1738275635993,0.2708312,678.77,678.46,0.80330489]
[1738275636193,0.2708312,678.77,678.47,0.80330489]
[1738275636393,0.2708312,678.77,678.48,0.80330489]
[1738275636594,0.2708312,678.77,678.49,0.80326137]
[1738275636791,0.2708312,678.77,678.5,0.80326137]
[1738275636991,1.10489124,678.78,678.51,0.80326137]
[1738275637196,1.10489124,678.78,678.52,0.80326137]
[1738275637397,1.10489124,678.76,678.53,0.80326137]
[1738275637597,1.10489124,678.76,678.16,1.02]
[1738275637798,1.10489124,678.76,678.17,0.80325616]
[1738275637996,1.10489124,678.76,678.18,0.80325616]
[1738275638198,1.10489124,678.76,678.19,0.80325616]
[1738275638398,1.10489124,678.76,678.2,0.80325653]
[1738275638595,1.10489124,678.76,678.21,0.80325653]
[1738275638794,1.10489124,678.76,678.22,0.80325653]
[1738275639094,1.10489124,678.76,678.23,0.80325653]
[1738275639298,1.10489124,678.76,678.24,0.80325653]
[1738275639495,1.10489124,678.76,678.25,0.80325653]
[1738275639699,1.10489124,678.76,678.26,0.80325653]
[1738275639896,1.10489124,678.76,678.27,0.80325653]
[1738275640199,1.10489124,678.76,678.28,0.80325653]
[1738275640400,1.10489124,678.76,678.29,0.80325653]
[1738275640702,1.10489124,678.74,678.3,0.80325653]
[1738275640902,1.10489124,678.74,678.31,0.80325653]
[1738275641096,1.10489124,678.74,678.32,0.80325653]
[1738275641303,1.10489124,678.74,678.33,0.80325653]
[1738275641501,1.10489124,678.74,678.34,0.80325653]
[1738275641697,1.10489124,678.74,678.35,0.80325653]
[1738275641902,1.10489124,678.74,678.36,0.80325653]
[1738275642103,1.10489124,678.74,678.37,0.80325653]
[1738275642302,1.10489124,678.74,678.38,0.80325653]
[1738275642498,1.10489124,678.74,678.39,0.80325653]
[1738275642697,1.10489124,678.74,678.4,0.80325653]
[1738275642903,1.10489124,678.74,678.41,0.80325653]
[1738275643100,1.10489124,678.74,678.42,0.80325653]
[1738275643300,1.10489124,678.74,678.43,0.80325653]
[1738275643505,1.10489124,678.74,678.44,0.80325653]
[1738275643804,1.10489124,678.74,678.45,0.80325653]
[1738275644005,1.10489124,678.74,678.46,0.80325653]
[1738275644200,1.10489124,678.74,678.47,0.80325653]
[1738275644400,1.10489124,678.74,678.48,0.80325653]
[1738275644605,1.10489124,678.69,678.49,0.80325653]
[1738275644800,1.10489124,678.69,678.5,0.80325653]
[1738275645002,1.10489124,678.69,678.51,0.80325653]
[1738275645202,1.10489124,678.69,678.52,0.80325653]
[1738275645503,1.10489124,678.69,678.53,0.80325653]
[1738275645704,1.10489124,678.69,678.4,1.14]
[1738275645904,1.10489124,678.69,678.41,0.80342296]
[1738275646104,1.10489124,678.69,678.42,0.80342296]
[1738275646300,1.10489124,678.69,678.43,0.80342296]
[1738275646499,1.10489124,678.69,678.44,0.80342296]
[1738275646705,1.10489124,678.69,678.45,0.80342296]
[1738275646902,1.10489124,678.69,678.46,0.80345794]
[1738275647124,1.10489124,678.69,678.47,0.80345794]
[1738275647305,1.10489124,678.69,678.48,0.80345794]
[1738275647506,1.10489124,678.63,678.49,0.80345794]
[1738275647703,1.10489124,678.63,678.5,0.80345794]
[1738275647906,1.10489124,678.63,678.51,0.80345794]
[1738275648106,1.10489124,678.63,678.52,0.80345794]
[1738275648303,1.10489124,678.63,678.53,0.80345794]
[1738275648503,1.10489124,678.63,678.54,0.80345794]
[1738275648704,1.10489124,678.63,678.4,1.14]
[1738275648907,1.10489124,678.63,678.41,0.80355041]
[1738275649107,1.10489124,678.63,678.42,0.80355211]
[1738275649304,1.10489124,678.63,678.4,1.14]
[1738275649305,1.10489124,678.63,678.43,0.80355211]
[1738275649509,1.10489124,678.63,678.44,0.80355211]
[1738275649705,1.10489124,678.63,678.45,0.80355211]
[1738275649902,1.10489124,678.63,678.46,0.80355211]
[1738275650102,1.10489124,678.63,678.47,0.80355211]
[1738275650408,1.10489124,678.63,678.48,0.80355211]
[1738275650602,1.10489124,678.63,678.49,0.80355211]
[1738275650802,1.10489124,678.63,678.5,0.80355211]
[1738275651005,1.10489124,678.63,678.51,0.80355211]
[1738275651205,1.10489124,678.63,678.52,0.80355211]
[1738275651401,1.10489124,678.63,678.53,0.80355211]
[1738275651603,1.10489124,678.63,678.54,0.80371142]
[1738275651807,1.10489124,678.63,678.4,1.14]
[1738275652007,1.10489124,678.63,678.41,0.80371235]
[1738275652207,1.10489124,678.63,678.42,0.80371235]
[1738275652403,1.10489124,678.63,678.43,0.80371235]
[1738275652609,1.10489124,678.63,678.44,0.80371235]
[1738275652807,1.10489124,678.63,678.45,0.80371235]
[1738275653010,1.10489124,678.63,678.46,0.80371235]
[1738275653307,1.10489124,678.63,678.4,1.14]
[1738275653507,1.10489124,678.63,678.41,0.80377106]
[1738275653710,1.10489124,678.63,678.4,1.14]
[1738275653907,1.10489124,678.63,678.41,0.80383705]
[1738275654110,1.10489124,678.63,678.42,0.80383705]
[1738275654310,1.10489124,678.63,678.4,1.14]
[1738275654311,1.10489124,678.63,678.43,0.80383705]
[1738275654506,1.10489124,678.63,678.44,0.80383705]
[1738275654711,1.10489124,678.63,678.45,0.80383705]
[1738275654912,1.10489124,678.63,678.46,0.80383705]
[1738275655110,1.10489124,678.63,678.47,0.80383705]
[1738275655311,1.10489124,678.63,678.48,0.80383705]
[1738275655514,1.10489124,678.63,678.49,0.80383705]
[1738275655810,1.10489124,678.63,678.5,0.80383705]
[1738275656015,1.10489124,678.63,678.51,0.80383705]
[1738275656215,1.10489124,678.63,678.52,0.80383705]
[1738275656516,1.10489124,678.63,678.53,0.80383705]
[1738275656815,1.10489124,678.63,678.54,0.80383705]
[1738275657112,1.10489124,678.63,678.55,0.80383705]
[1738275657316,1.10489124,678.63,678.4,1.14]
[1738275657517,1.10489124,678.63,678.41,0.80413845]
[1738275657818,1.10489124,678.63,678.42,0.80413845]
[1738275658017,1.10489124,678.63,678.43,0.80413845]
[1738275658317,1.10489124,678.63,678.44,0.80413845]
[1738275658516,1.10489124,678.63,678.45,0.80413845]
[1738275658716,1.10489124,678.63,678.46,0.80413845]
[1738275659015,1.10489124,678.63,678.47,0.80413845]
[1738275659217,1.10489124,678.63,678.48,0.80413845]
[1738275659413,1.10489124,678.63,678.49,0.80413845]
[1738275659617,1.10489124,678.63,678.5,0.80413845]
[1738275659817,1.10489124,678.63,678.51,0.80413845]
[1738275660018,1.10489124,678.63,678.52,0.80413845]
[1738275660318,1.10489124,678.63,678.53,0.80413845]
[1738275660516,1.10489124,678.63,678.54,0.80413845]
[1738275660818,1.10489124,678.63,678.55,0.80413845]
[1738275661020,1.10489124,678.63,678.56,0.80413845]
[1738275661318,1.10489124,678.63,678.47,0.768]
[1738275661613,1.10489124,678.64,678.48,0.80431983]
[1738275661819,1.10489124,678.64,678.49,0.80431983]
[1738275662016,1.10489124,678.64,678.5,0.80431983]
[1738275662217,1.10489124,678.64,678.51,0.80431983]
[1738275662518,1.10489124,678.64,678.52,0.80431983]
[1738275662719,1.10489124,678.64,678.53,0.80431983]
[1738275662918,1.10489124,678.64,678.54,0.80431983]
[1738275663113,1.10489124,678.64,678.55,0.80431983]
[1738275663313,1.10489124,678.64,678.56,0.80431983]
[1738275663520,1.10489124,678.64,678.57,0.80469103]
[1738275663720,1.10489124,678.64,678.47,0.768]
[1738275663920,1.10489124,678.64,678.48,0.80468342]
[1738275664122,1.10489124,678.64,678.49,0.80468342]
[1738275664322,1.10489124,678.64,678.5,0.80468342]
[1738275664521,1.10489124,678.64,678.51,0.80468342]
[1738275664717,1.10489124,678.64,678.52,0.80468342]
[1738275664921,1.10489124,678.64,678.53,0.80468342]
[1738275665122,1.10489124,678.64,678.54,0.80468342]
[1738275665321,1.10489124,678.64,678.55,0.80468342]
[1738275665521,1.10489124,678.64,678.56,0.80468342]
[1738275665722,1.10489124,678.64,678.57,0.80468342]
[1738275666022,1.10489124,678.64,678.58,0.80468342]
[1738275666215,1.10489124,678.64,678.59,0.80536242]
[1738275666420,1.10489124,678.64,678.6,0.80536242]
[1738275666715,1.10489124,678.64,678.47,0.768]
[1738275666918,1.10489124,678.64,678.48,0.80536242]
[1738275667223,1.10489124,678.64,678.49,0.80536242]
[1738275667427,1.10489124,678.71,678.5,0.80536242]
[1738275667719,1.10489124,678.71,678.51,0.80547148]
[1738275667921,1.10489124,678.71,678.52,0.80547148]
[1738275668120,1.10489124,678.71,678.53,0.80547148]
[1738275668320,1.10489124,678.71,678.54,0.80547148]
[1738275668521,1.10489124,678.71,678.55,0.80547148]
[1738275668722,1.10489124,678.71,678.56,0.80547148]
[1738275668923,1.10489124,678.71,678.57,0.80547148]
[1738275669124,1.10489124,678.71,678.58,0.80547148]
[1738275669323,1.10489124,678.71,678.59,0.80547148]
[1738275669524,1.10489124,678.71,678.6,0.80547148]
[1738275669725,1.10489124,678.71,678.47,0.768]
[1738275669924,1.10489124,678.71,678.48,0.80553474]
[1738275670126,1.10489124,678.71,678.47,0.768]
[1738275670421,1.10489124,678.71,678.48,0.80552992]
[1738275670622,1.10489124,678.71,678.49,0.80552992]
[1738275670825,1.10489124,678.71,678.5,0.80552992]
[1738275671126,1.10489124,678.71,678.51,0.80552992]
[1738275671319,1.10489124,678.71,678.52,0.80552992]
[1738275671520,1.10489124,678.71,678.53,0.80552992]
[1738275671721,1.10489124,678.71,678.54,0.80552992]
[1738275671920,1.10489124,678.71,678.55,0.80552992]
[1738275672124,1.10489124,678.71,678.56,0.80552992]
[1738275672324,1.10489124,678.71,678.57,0.80552992]
[1738275672525,1.10489124,678.71,678.58,0.80552992]
[1738275672722,1.10489124,678.71,678.59,0.80552992]
[1738275672927,1.10489124,678.71,678.47,0.768]
[1738275672928,1.10489124,678.71,678.6,0.80553746]
[1738275673129,1.10489124,678.71,678.47,0.768]
[1738275673322,1.10489124,678.71,678.48,0.80553395]
[1738275673521,1.10489124,678.71,678.49,0.80553395]
[1738275673821,1.10489124,678.71,678.5,0.80553395]
[1738275674026,1.10489124,678.71,678.51,0.80553395]
[1738275674226,1.10489124,678.71,678.52,0.80553395]
[1738275674528,1.10489124,678.71,678.53,0.80553395]
[1738275674731,1.10489124,678.71,678.54,0.80553395]
[1738275674923,1.10489124,678.71,678.55,0.80553395]
[1738275675123,1.10489124,678.71,678.47,0.768]
[1738275675124,1.10489124,678.71,678.56,0.80553395]
[1738275675322,1.10489124,678.71,678.57,0.80553395]
[1738275675522,1.10489124,678.71,678.58,0.80553395]
[1738275675728,1.10489124,678.71,678.59,0.80553395]
[1738275675929,1.10489124,678.71,678.6,0.80553395]
[1738275676130,1.10489124,678.71,678.47,0.768]
[1738275676426,1.10489124,678.62,678.48,0.8055421]
[1738275676630,1.10489124,678.62,678.49,0.8055421]
[1738275676832,1.10489124,678.62,678.5,0.8055421]
[1738275677127,1.10489124,678.62,678.51,0.8055421]
[1738275677328,1.10489124,678.62,678.52,0.8055421]
[1738275677525,1.10489124,678.62,678.53,0.8055421]
[1738275677728,1.10489124,678.62,678.54,0.8055421]
[1738275677931,1.10489124,678.62,678.55,0.8055421]
[1738275678128,1.10489124,678.62,678.56,0.8055421]
[1738275678429,1.10489124,678.62,678.47,0.768]
[1738275678430,1.10489124,678.62,678.57,0.8055421]
[1738275678627,1.10489124,678.62,678.58,0.8055421]
[1738275678935,1.10489124,678.62,678.59,0.8055421]
[1738275679133,1.10489124,678.62,678.6,0.8055421]
[1738275679334,2.24883439,679.12,678.47,0.768]
[1738275679335,1.10489124,678.61,678.47,0.768]
[1738275679534,1.10489124,678.61,678.48,0.80552289]
[1738275679728,1.10489124,678.61,678.49,0.80552289]
[1738275679934,1.10489124,678.61,678.5,0.80552289]
[1738275680130,1.10489124,678.61,678.51,0.80552289]
[1738275680434,1.10489124,678.61,678.52,0.80551227]
[1738275680735,1.10489124,678.61,678.53,0.80551227]
[1738275681034,1.10489124,678.61,678.54,0.80551227]
[1738275681235,1.10489124,678.61,678.47,0.768]
[1738275681835,1.10489124,678.61,678.48,0.80551307]
[1738275682032,1.10489124,678.61,678.49,0.80551307]
[1738275682335,1.10489124,678.61,678.47,0.768]
[1738275682336,1.10489124,678.61,678.5,0.80551307]
[1738275682534,1.10489124,678.61,678.51,0.80551307]
[1738275682740,1.10489124,678.61,678.52,0.80551307]
[1738275682930,1.10489124,678.61,678.53,0.80551307]
[1738275683132,1.10489124,678.61,678.54,0.80551307]
[1738275683331,1.10489124,678.61,678.55,0.80551307]
[1738275683534,1.10489124,678.61,678.56,0.80551307]
[1738275683734,1.10489124,678.61,678.57,0.80551307]
[1738275683934,1.10489124,678.61,678.58,0.80551307]
[1738275684133,1.10489124,678.61,678.59,0.80551307]
[1738275684331,1.10489124,678.61,678.47,0.768]
[1738275684537,1.10489124,678.61,678.48,0.80548637]
[1738275684836,1.10489124,678.61,678.49,0.80548637]
[1738275685037,1.10489124,678.61,678.5,0.80548637]
[1738275685237,1.10489124,678.61,678.51,0.80548637]
[1738275685433,1.10489124,678.61,678.52,0.80548637]
[1738275685637,1.10489124,678.61,678.53,0.80548637]
[1738275685833,1.10489124,678.61,678.54,0.80548637]
[1738275686036,1.10489124,678.61,678.55,0.80548637]
[1738275686338,1.10489124,678.61,678.56,0.80548637]
[1738275686540,1.10489124,678.61,678.57,0.80548637]
[1738275686737,1.10489124,678.61,678.58,0.80548637]
[1738275686937,1.10489124,678.61,678.59,0.80548637]
[1738275687138,1.10489124,678.61,678.6,0.80548637]
[1738275687640,1.10489124,678.61,678.52,0.818]
[1738275687839,1.10489124,678.61,678.53,0.80547616]
[1738275688035,1.10489124,678.61,678.54,0.80547728]
[1738275688238,1.10489124,678.61,678.55,0.80547728]
[1738275688435,1.10489124,678.61,678.52,0.818]
[1738275688635,1.10489124,678.61,678.53,0.80546493]
[1738275688835,1.10489124,678.61,678.54,0.80546493]
[1738275689140,1.10489124,678.61,678.55,0.80546493]
[1738275689339,1.10489124,678.61,678.56,0.80546493]
[1738275689539,2.24883439,679.11,678.57,0.80546493]
[1738275689540,1.1014699,678.78,678.57,0.80546493]
[1738275689739,0.27083862,678.77,678.58,0.80546493]
[1738275690040,0.27083862,678.77,678.59,0.80546493]
[1738275690241,0.27083862,678.77,678.52,0.818]
[1738275690434,0.27083862,678.77,678.53,0.80545887]
[1738275690640,0.27083959,678.76,678.54,0.80545887]
[1738275690840,1.1014699,678.78,678.55,0.80545887]
[1738275691140,1.1014699,678.78,678.56,0.80545887]
[1738275691141,0.27083991,678.77,678.56,0.80545887]
[1738275691342,0.27083991,678.77,678.57,0.80545887]
[1738275691537,0.27083991,678.77,678.58,0.80545887]
[1738275691739,0.27083991,678.77,678.59,0.80545887]
[1738275691941,0.27083991,678.77,678.6,0.80544814]
[1738275692241,0.27083991,678.77,678.52,0.818]
[1738275692444,1.1014699,678.78,678.53,0.8054484]
[1738275692742,1.1014699,678.78,678.52,0.818]
[1738275692743,0.27083755,678.77,678.54,0.8054484]
[1738275693043,0.27083755,678.77,678.55,0.80545424]
[1738275693244,1.10478709,678.6,678.56,0.80545424]
[1738275693443,1.10478709,678.6,678.57,0.80545424]
[1738275693642,1.10478709,678.6,678.58,0.80545424]
[1738275693843,1.10478709,678.6,678.59,0.80545424]
[1738275696648,1.10478709,678.6,678.59,0.80545048]
[1738275697039,1.10478709,678.6,678.59,0.80545001]
[1738275699142,1.10478709,678.6,678.52,0.818]
[1738275699346,1.10478709,678.6,678.53,0.80546221]
[1738275699547,1.10478709,678.6,678.54,0.80546221]
[1738275699746,1.10478709,678.6,678.55,0.80546221]
[1738275699945,1.10478709,678.6,678.56,0.80546221]
[1738275700144,1.10478709,678.6,678.57,0.80546221]
[1738275700341,1.10478709,678.6,678.58,0.80546221]
[1738275700540,1.10478709,678.6,678.52,0.818]
[1738275700747,1.10478709,678.6,678.53,0.80546067]
[1738275700945,1.10478709,678.6,678.54,0.80546067]
[1738275701148,1.10478709,678.6,678.55,0.80546067]
[1738275701446,1.10478709,678.6,678.56,0.80546067]
[1738275701647,1.10478709,678.6,678.57,0.80546067]
[1738275701840,1.10478709,678.6,678.58,0.80546067]
[1738275702042,1.10478709,678.6,678.52,0.818]
[1738275702245,1.10478709,678.6,678.53,0.80543858]
[1738275702445,1.10478709,678.6,678.54,0.80543858]
[1738275702645,1.10478709,678.6,678.55,0.80543858]
[1738275702842,1.10478709,678.6,678.56,0.80543858]
[1738275703047,1.10478709,678.59,678.57,0.80543858]
[1738275703248,1.10478709,678.59,678.58,0.80543858]
[1738275704249,1.10478709,678.59,678.58,0.80544025]
[1738275705750,1.10478709,678.59,678.58,0.80543861]
[1738275707749,1.10478709,678.59,678.52,0.818]
[1738275707949,1.10478709,678.59,678.53,0.80544956]
[1738275708148,1.10478709,678.59,678.54,0.80544956]
[1738275708350,1.10478709,678.59,678.55,0.80544956]
[1738275708649,1.10478709,678.59,678.56,0.80544956]
[1738275708850,1.10478709,678.59,678.57,0.80544956]
[1738275709045,1.10478709,678.59,678.52,0.818]
[1738275709251,1.10478709,678.59,678.53,0.80543397]
[1738275709451,1.10478709,678.59,678.54,0.80543397]
[1738275709750,1.10478709,678.59,678.55,0.80543397]
[1738275710050,1.10478709,678.59,678.52,0.818]
[1738275710051,1.10478709,678.59,678.56,0.80543397]
[1738275710246,1.10478709,678.59,678.57,0.80543397]
[1738275710451,1.10478709,678.59,678.52,0.818]
[1738275710647,1.10478709,678.59,678.53,0.80544232]
[1738275710851,1.10478709,678.59,678.54,0.80544232]
[1738275711046,1.10478709,678.59,678.55,0.80544232]
[1738275711251,1.10478709,678.59,678.56,0.80544232]
[1738275711447,1.10478709,678.59,678.57,0.80544232]
[1738275711649,1.10478709,678.59,678.52,0.818]
[1738275711852,1.10478709,678.59,678.53,0.80543469]
[1738275712054,1.10478709,678.59,678.54,0.80543469]
[1738275712353,1.10478709,678.59,678.55,0.80543469]
[1738275712553,1.10478709,678.59,678.56,0.80543469]
[1738275712754,1.10478709,678.59,678.57,0.80543469]
[1738275712953,1.10478709,678.59,678.52,0.818]
[1738275713155,1.10478709,678.59,678.53,0.80542853]
[1738275713350,1.10478709,678.59,678.54,0.80542853]
[1738275713555,1.10478709,678.59,678.55,0.80542853]
[1738275713755,1.10478709,678.59,678.56,0.80542853]
[1738275713956,1.10478709,678.59,678.57,0.80542853]
[1738275714254,1.10478709,678.59,678.52,0.818]
[1738275714455,1.10478709,678.59,678.53,0.80543901]
[1738275714653,1.10478709,678.59,678.54,0.80543901]
[1738275714853,1.10478709,678.59,678.55,0.80543901]
[1738275715055,1.10478709,678.59,678.56,0.80543901]
[1738275715355,1.10478709,678.59,678.57,0.80543901]
[1738275715553,1.10478709,678.59,678.07,1.53848421]
[1738275715749,1.10478709,678.59,678.5,0.812]
[1738275715954,1.10478709,678.59,678.51,0.80544132]
[1738275716255,1.10478709,678.59,678.52,0.80544132]
[1738275716456,1.10478709,678.59,678.53,0.80544132]
[1738275716754,1.10478709,678.59,678.54,0.80544132]
[1738275716955,1.10478709,678.59,678.55,0.80544132]
[1738275717155,1.10478709,678.59,678.56,0.80544132]
[1738275717355,1.10478709,678.59,678.57,0.80544132]
[1738275717555,1.10478709,678.59,678.5,0.812]
[1738275717749,1.10478709,678.59,678.51,0.80543625]
[1738275717952,1.10478709,678.59,678.52,0.80543625]
[1738275718153,1.10478709,678.59,678.53,0.80543625]
[1738275718351,1.10478709,678.59,678.5,0.812]
[1738275718352,1.10478709,678.59,678.54,0.80543625]
[1738275718549,1.10478709,678.59,678.5,0.812]
[1738275718550,1.10478709,678.59,678.55,0.80543625]
[1738275718752,1.10478709,678.59,678.56,0.80543625]
[1738275718952,1.10478709,678.59,678.57,0.80543625]
[1738275719152,1.10478709,678.59,678.5,0.812]
[1738275719350,1.10478709,678.59,678.51,0.8054341]
[1738275719656,1.10478709,678.59,678.52,0.8054341]
[1738275719955,1.10478709,678.59,678.53,0.8054341]
[1738275720255,1.10478709,678.59,678.54,0.8054341]
[1738275720457,1.10478709,678.59,678.55,0.8054341]
[1738275720659,1.10478709,678.59,678.56,0.8054341]
[1738275720953,1.10478709,678.59,678.57,0.8054341]
[1738275721158,1.10478709,678.59,678.58,0.8054341]
[1738275721761,1.10478709,678.59,678.58,0.80544214]
[1738275721962,1.10478709,678.59,678.58,0.80544523]
[1738275723360,1.10478709,678.59,678.5,0.812]
[1738275723655,1.10478709,678.59,678.51,0.8054438]
[1738275723862,1.10478709,678.59,678.52,0.8054431]
[1738275724060,1.10478709,678.59,678.53,0.8054431]
[1738275724261,1.10478709,678.59,678.54,0.8054431]
[1738275724461,1.10478709,678.59,678.55,0.8054431]
[1738275724664,1.10478709,678.59,678.56,0.8054431]
[1738275724864,1.10478709,678.59,678.57,0.8054431]
[1738275725059,1.10478709,678.59,678.58,0.80543999]
[1738275725459,1.10478709,678.59,678.5,0.812]
[1738275725759,1.10478709,678.59,678.51,0.80543775]
[1738275725964,1.10478709,678.59,678.52,0.80543775]
[1738275726168,1.10478709,678.59,678.53,0.80543775]
[1738275726359,1.10478709,678.59,678.54,0.80543775]
[1738275726562,1.10478709,678.59,678.55,0.80543775]
[1738275726765,1.10478709,678.59,678.56,0.80543775]
[1738275727065,1.10478709,678.59,678.57,0.80543775]
[1738275727265,1.10478709,678.59,678.58,0.80542949]
[1738275727462,1.10478709,678.59,678.5,0.812]
[1738275727660,1.10478709,678.59,678.51,0.80543102]
[1738275727864,1.10478709,678.59,678.52,0.80543102]
[1738275728062,1.10478709,678.59,678.53,0.80543102]
[1738275728265,1.10478709,678.59,678.54,0.80543102]
[1738275728466,1.10478709,678.59,678.55,0.80543102]
[1738275728666,1.10478709,678.59,678.56,0.80543102]
[1738275728867,1.10478709,678.59,678.57,0.80543102]
[1738275729168,1.10478709,678.59,678.58,0.80543102]
[1738275729367,1.10478709,678.59,678.58,0.80542825]
[1738275729569,1.10478709,678.59,678.5,0.812]
[1738275729769,1.10478709,678.59,678.51,0.80542888]
[1738275729969,1.10478709,678.59,678.52,0.80542888]
[1738275730269,1.10478709,678.59,678.53,0.80543088]
[1738275730570,1.10478709,678.59,678.54,0.80543088]
[1738275730768,1.10478709,678.59,678.55,0.80542807]
[1738275730966,1.10478709,678.59,678.56,0.80542807]
[1738275731164,1.10478709,678.59,678.57,0.80543202]
[1738275731364,1.10478709,678.59,678.5,0.812]
[1738275731567,1.10478709,678.59,678.51,0.80542971]
[1738275731868,1.10478709,678.59,678.52,0.80542971]
[1738275732070,1.10478709,678.59,678.53,0.80542971]
[1738275732270,1.10478709,678.59,678.54,0.80542971]
[1738275732470,1.10478709,678.59,678.55,0.80542971]
[1738275732670,1.10478709,678.59,678.5,0.812]
[1738275732671,1.10478709,678.59,678.56,0.80542971]
[1738275732871,1.10478709,678.59,678.57,0.80542971]